fUST/lending_fUST_20250127
["ID","MTS","AMOUNT","RATE_DAILY","PERIOD"]
[350584426,1737975034466,-1928.28,0.00016438,2]
[350584427,1737975034476,-215.88025892,0.00016438,2]
[350584489,1737975038531,-231.13,0.00016428,2]
[350584491,1737975038541,-231.13,0.00016428,2]
[350584493,1737975038551,-231.13,0.00016428,2]
[350584495,1737975038561,-202.61,0.00016428,2]
[350584504,1737975038640,-28.52,0.00016428,2]
[350584506,1737975038650,-231.13,0.00016428,2]
[350584508,1737975038660,-231.13,0.00016428,2]
[350584511,1737975038670,-231.13,0.00016428,2]
[350584513,1737975038679,-231.13,0.00016428,2]
[350584515,1737975038689,-231.13,0.00016428,2]
[350584517,1737975038698,-284.11974108,0.00016438,2]
[350584519,1737975038707,-500.0,0.00016438,2]
[350584521,1737975038716,-0.66766386,0.00016438,2]
[350584780,1737975043714,-231.13,0.00016428,2]
[350584782,1737975043725,-231.13,0.00016428,2]
[350584784,1737975043736,-231.13,0.00016428,2]
[350584786,1737975043747,-231.13,0.00016428,2]
[350584788,1737975043761,-231.13,0.00016428,2]
[350584789,1737975043772,-231.13,0.00016428,2]
[350584790,1737975043783,-231.13,0.00016428,2]
[350584791,1737975043797,-231.13,0.00016428,2]
[350584792,1737975043808,-231.13,0.00016428,2]
[350584793,1737975043818,-231.13,0.00016428,2]
[350584794,1737975043828,-128.69999999,0.00016428,2]
[350584815,1737975046626,-102.43000001,0.00016428,2]
[350584816,1737975046639,-499.33233614,0.00016438,2]
[350584817,1737975046649,-500.0,0.00016438,2]
[350584818,1737975046659,-516.58,0.00016438,2]
[350584819,1737975046669,-500.0,0.00016438,2]
[350584820,1737975046679,-500.0,0.00016438,2]
[350584821,1737975046688,-500.0,0.00016438,2]
[350584822,1737975046698,-334.70431092,0.00016438,2]
[350584823,1737975047040,-584.92568908,0.00016438,2]
[350584824,1737975047050,-500.0,0.00016438,2]
[350584825,1737975047060,-175.23815555,0.00016438,2]
[350584826,1737975047070,-500.0,0.00016438,2]
[350584827,1737975047080,-500.0,0.00016438,2]
[350584828,1737975047091,-813.98,0.00016438,2]
[350584829,1737975047101,-500.0,0.00016438,2]
[350584830,1737975047111,-1781.82841288,0.00016438,2]
[350584833,1737975525196,776.82206547,0.0002,30]
[350584834,1737975550135,10000.0,0.00023001,120]
[350584835,1737975567440,3355.0,0.00023001,120]
[350584837,1737975686907,10000.0,0.00015101,2]
[350584838,1737975712701,10000.0,0.00018,30]
[350584839,1737975797935,165.280825,0.00013973,2]
[350584850,1737976046150,-540.3224408,0.00015179,2]
[350584851,1737976046179,-540.3224408,0.00015332,2]
[350584852,1737976046202,-336.906,0.0001587,2]
[350584853,1737976046223,-368.38520881,0.0001587,2]
[350584854,1737976046244,-300.0,0.00015999,2]
[350584855,1737976046266,-2295.73050103,0.00016,2]
[350584856,1737976150136,-1665.265,0.0001584,2]
[350584858,1737976172140,-146.28508476,0.0001584,2]
[350584859,1737976172166,-300.0,0.00015999,2]
[350584860,1737976172186,-53056.96445378,0.00016,2]
[350584909,1737976236520,-601.38920547,0.00016,2]
[350584911,1737976236530,-4328.0,0.00016274,5]
[350584913,1737976236539,-174.74410633,0.00016338,2]
[350584915,1737976236549,-300.0,0.00016437,2]
[350584917,1737976236559,-500.0,0.00016438,2]
[350584919,1737976236568,-240.04,0.00016438,2]
[350584920,1737976236577,-439.98,0.00016438,2]
[350584922,1737976236587,-158.266,0.00016438,2]
[350584924,1737976236596,-506.77,0.00016438,2]
[350584926,1737976236606,-302.85196127,0.00016438,2]
[350584927,1737976236615,-527.5991403,0.00016438,2]
[350584928,1737976236625,-500.0,0.00016438,2]
[350584929,1737976236634,-500.0,0.00016438,2]
[350584930,1737976236644,-202.32594803,0.00016438,2]
[350584931,1737976236653,-55.42898688,0.00016438,2]
[350584932,1737976236671,-444.57101312,0.00016438,2]
[350584933,1737976236680,-519.59,0.00016438,2]
[350584934,1737976236689,-500.0,0.00016438,2]
[350584935,1737976236698,-500.0,0.00016438,2]
[350584936,1737976236707,-500.0,0.00016438,2]
[350584937,1737976236716,-500.0,0.00016438,2]
[350584938,1737976236727,-500.0,0.00016438,2]
[350584939,1737976236736,-602.14,0.00016438,2]
[350584940,1737976236745,-500.0,0.00016438,2]
[350584941,1737976236754,-633.73,0.00016438,2]
[350584942,1737976236763,-500.0,0.00016438,2]
[350584943,1737976236773,-500.0,0.00016438,2]
[350584944,1737976236782,-500.0,0.00016438,2]
[350584945,1737976236791,-500.0,0.00016438,2]
[350584946,1737976236800,-500.0,0.00016438,2]
[350584947,1737976236809,-500.0,0.00016438,2]
[350584948,1737976236819,-500.0,0.00016438,2]
[350584949,1737976236828,-500.0,0.00016438,2]
[350584950,1737976236837,-500.0,0.00016438,2]
[350584951,1737976236846,-502.48,0.00016438,2]
[350584952,1737976236855,-500.0,0.00016438,2]
[350584953,1737976236864,-500.0,0.00016438,2]
[350584954,1737976236873,-500.0,0.00016438,2]
[350584955,1737976236883,-500.0,0.00016438,2]
[350584956,1737976236892,-500.0,0.00016438,2]
[350584957,1737976236901,-500.0,0.00016438,2]
[350584958,1737976236911,-500.0,0.00016438,2]
[350584959,1737976236920,-500.0,0.00016438,2]
[350584960,1737976236929,-500.0,0.00016438,2]
[350584961,1737976236939,-500.0,0.00016438,2]
[350584962,1737976236948,-500.0,0.00016438,2]
[350584963,1737976236957,-500.0,0.00016438,2]
[350584964,1737976236967,-552.05,0.00016438,2]
[350584965,1737976236978,-500.0,0.00016438,2]
[350584966,1737976236987,-500.0,0.00016438,2]
[350584967,1737976236996,-500.0,0.00016438,2]
[350584968,1737976237006,-464.84860677,0.00016438,2]
[350584969,1737976237015,-500.0,0.00016438,2]
[350584970,1737976237024,-500.0,0.00016438,2]
[350584971,1737976237034,-152.482438,0.00016438,2]
[350584972,1737976237043,-500.0,0.00016438,2]
[350584973,1737976237052,-500.0,0.00016438,2]
[350584974,1737976237061,-500.0,0.00016438,2]
[350584975,1737976237071,-938.82,0.00016438,2]
[350584976,1737976237080,-500.0,0.00016438,2]
[350584977,1737976237089,-496.98142002,0.00016438,2]
[350584978,1737976237098,-2936.62,0.00016438,2]
[350584979,1737976237108,-505.70535045,0.00016438,2]
[350584980,1737976237117,-500.0,0.00016438,2]
[350584981,1737976237126,-500.0,0.00016438,2]
[350584982,1737976237135,-607.25295662,0.00016438,2]
[350584983,1737976237145,-250.55,0.00016438,2]
[350584984,1737976237154,-228.64918544,0.00016438,2]
[350584985,1737976237164,-1902.89,0.00016438,2]
[350584986,1737976237174,-500.0,0.00016438,2]
[350584987,1737976237183,-500.0,0.00016438,2]
[350584988,1737976237193,-500.0,0.00016438,2]
[350584989,1737976237202,-176.128499,0.00016438,2]
[350584990,1737976237212,-500.0,0.00016438,2]
[350584991,1737976237223,-500.0,0.00016438,2]
[350584992,1737976237233,-500.0,0.00016438,2]
[350584993,1737976237243,-500.0,0.00016438,2]
[350584994,1737976237252,-643.60478324,0.00016438,2]
[350584995,1737976237261,-283.76,0.00016438,2]
[350584996,1737976237270,-1101.83,0.00016438,2]
[350584997,1737976237279,-859.34,0.00016438,2]
[350584998,1737976237288,-3065.26,0.00016438,2]
[350584999,1737976237297,-2815.36,0.00016438,2]
[350585000,1737976237307,-695.08,0.00016438,2]
[350585001,1737976237316,-500.0,0.00016438,2]
[350585002,1737976237325,-500.0,0.00016438,2]
[350585003,1737976237335,-500.0,0.00016438,2]
[350585004,1737976237344,-644.19932002,0.00016438,2]
[350585005,1737976237353,-500.0,0.00016438,2]
[350585006,1737976237363,-500.0,0.00016438,2]
[350585007,1737976237372,-1318.94,0.00016438,2]
[350585008,1737976237382,-8022.93,0.00016438,2]
[350585009,1737976237391,-500.0,0.00016438,2]
[350585010,1737976237400,-1021.74,0.00016438,2]
[350585011,1737976237409,-500.0,0.00016438,2]
[350585012,1737976237419,-721.82,0.00016438,2]
[350585013,1737976237428,-500.0,0.00016438,2]
[350585014,1737976237437,-500.0,0.00016438,2]
[350585015,1737976237447,-501.75930105,0.00016438,2]
[350585016,1737976237456,-500.0,0.00016438,2]
[350585017,1737976237466,-776.85,0.00016438,2]
[350585018,1737976237477,-500.0,0.00016438,2]
[350585019,1737976237486,-1240.34,0.00016438,2]
[350585020,1737976237496,-500.0,0.00016438,2]
[350585021,1737976237505,-500.0,0.00016438,2]
[350585022,1737976237515,-500.0,0.00016438,2]
[350585023,1737976237525,-500.0,0.00016438,2]
[350585024,1737976237534,-2087.29,0.00016438,2]
[350585025,1737976237543,-500.0,0.00016438,2]
[350585026,1737976237552,-500.0,0.00016438,2]
[350585027,1737976237562,-500.0,0.00016438,2]
[350585028,1737976237571,-177.18024193,0.00016574,2]
[350585029,1737976237580,-183.58099554,0.00016574,2]
[350585030,1737976237589,-500.0,0.00016575,2]
[350585031,1737976237598,-181.263469,0.00016575,2]
[350585032,1737976237607,-172.257211,0.00016575,2]
[350585033,1737976237616,-177.998522,0.00016575,2]
[350585034,1737976237626,-151.0,0.00016575,2]
[350585035,1737976237635,-151.0,0.00016575,2]
[350585036,1737976237644,-177.998522,0.00016575,2]
[350585037,1737976237653,-171.012366,0.00016575,2]
[350585038,1737976237662,-171.012366,0.00016575,2]
[350585039,1737976237671,-171.012366,0.00016575,2]
[350585040,1737976237680,-171.012366,0.00016575,2]
[350585041,1737976237689,-500.0,0.00016575,2]
[350585042,1737976237699,-151.0,0.00016575,2]
[350585043,1737976237707,-151.0,0.00016575,2]
[350585044,1737976237717,-151.0,0.00016575,2]
[350585045,1737976237726,-151.0,0.00016575,2]
[350585046,1737976237737,-500.0,0.00016575,2]
[350585047,1737976237746,-500.0,0.00016575,2]
[350585048,1737976237755,-236.83,0.00016575,2]
[350585049,1737976237764,-500.0,0.00016575,2]
[350585050,1737976237773,-500.0,0.00016575,2]
[350585051,1737976237782,-500.0,0.00016575,2]
[350585052,1737976237792,-612.69480582,0.00016575,2]
[350585053,1737976237801,-500.0,0.00016575,2]
[350585054,1737976237810,-151.0,0.00016575,2]
[350585055,1737976237819,-151.0,0.00016575,2]
[350585056,1737976237828,-151.0,0.00016575,2]
[350585057,1737976237837,-274.208251,0.00016575,2]
[350585058,1737976237846,-500.0,0.00016575,2]
[350585059,1737976237856,-500.0,0.00016575,2]
[350585060,1737976237866,-190.803302,0.00016575,2]
[350585061,1737976237874,-161.332266,0.00016575,2]
[350585062,1737976237883,-500.0,0.00016575,2]
[350585063,1737976237893,-500.0,0.00016575,2]
[350585064,1737976237902,-500.0,0.00016575,2]
[350585065,1737976237911,-361.35299539,0.00016575,2]
[350585066,1737976237920,-468.665611,0.00016575,2]
[350585067,1737976237930,-468.665611,0.00016575,2]
[350585068,1737976237939,-500.0,0.00016575,2]
[350585069,1737976237948,-468.665611,0.00016575,2]
[350585070,1737976237959,-468.665611,0.00016575,2]
[350585071,1737976237968,-555.26,0.00016575,2]
[350585072,1737976237978,-151.0,0.00016575,2]
[350585073,1737976237987,-151.0,0.00016575,2]
[350585074,1737976237996,-151.0,0.00016575,2]
[350585075,1737976238005,-187.420306,0.00016575,2]
[350585076,1737976238014,-414.3782248,0.00016575,2]
[350585077,1737976238023,-500.0,0.00016575,2]
[350585078,1737976238033,-500.0,0.00016575,2]
[350585079,1737976238042,-938.82,0.00016575,2]
[350585080,1737976238052,-500.0,0.00016575,2]
[350585081,1737976238062,-2936.62,0.00016575,2]
[350585082,1737976238072,-500.0,0.00016575,2]
[350585083,1737976238081,-1902.89,0.00016575,2]
[350585084,1737976238090,-500.0,0.00016575,2]
[350585085,1737976238099,-500.0,0.00016575,2]
[350585086,1737976238109,-500.0,0.00016575,2]
[350585087,1737976238119,-500.0,0.00016575,2]
[350585088,1737976238129,-1101.83,0.00016575,2]
[350585089,1737976238138,-859.34,0.00016575,2]
[350585091,1737976238148,-3065.26,0.00016575,2]
[350585093,1737976238157,-2815.36,0.00016575,2]
[350585094,1737976238168,-695.08,0.00016575,2]
[350585095,1737976238180,-500.0,0.00016575,2]
[350585096,1737976238189,-248.74133609,0.00016575,2]
[350585097,1737976238198,-500.0,0.00016575,2]
[350585098,1737976238207,-500.0,0.00016575,2]
[350585099,1737976238220,-151.0,0.00016575,2]
[350585100,1737976238229,-1318.94,0.00016575,2]
[350585101,1737976238238,-8022.93,0.00016575,2]
[350585102,1737976238248,-500.0,0.00016575,2]
[350585103,1737976238258,-1021.74,0.00016575,2]
[350585105,1737976238267,-500.0,0.00016575,2]
[350585107,1737976238276,-721.82,0.00016575,2]
[350585109,1737976238285,-500.0,0.00016575,2]
[350585111,1737976238295,-776.85,0.00016575,2]
[350585113,1737976238304,-500.0,0.00016575,2]
[350585115,1737976238313,-1240.34,0.00016575,2]
[350585117,1737976238322,-500.0,0.00016575,2]
[350585119,1737976238332,-500.0,0.00016575,2]
[350585121,1737976238341,-2087.29,0.00016575,2]
[350585123,1737976238350,-500.0,0.00016575,2]
[350585125,1737976238359,-500.0,0.00016575,2]
[350585127,1737976238368,-500.0,0.00016575,2]
[350585129,1737976238378,-5979.15826542,0.00016712,5]
[350585131,1737976238387,-151.0,0.00016712,2]
[350585133,1737976238397,-151.0,0.00016712,2]
[350585134,1737976238406,-500.0,0.00016712,2]
[350585136,1737976238415,-500.0,0.00016712,2]
[350585138,1737976238424,-281.6223,0.00016712,2]
[350585140,1737976238432,-500.0,0.00016712,2]
[350585142,1737976238442,-181.263469,0.00016712,2]
[350585144,1737976238451,-181.263469,0.00016712,2]
[350585146,1737976238461,-289.279959,0.00016712,2]
[350585148,1737976238470,-289.279959,0.00016712,2]
[350585150,1737976238479,-289.279959,0.00016712,2]
[350585152,1737976238489,-289.279959,0.00016712,2]
[350585154,1737976238498,-177.998522,0.00016712,2]
[350585156,1737976238508,-177.998522,0.00016712,2]
[350585158,1737976238517,-151.0,0.00016712,2]
[350585160,1737976238527,-151.0,0.00016712,2]
[350585162,1737976238536,-356.746726,0.00016712,2]
[350585164,1737976238545,-356.746726,0.00016712,2]
[350585166,1737976238555,-177.998522,0.00016712,2]
[350585168,1737976238565,-177.998522,0.00016712,2]
[350585170,1737976238574,-356.746726,0.00016712,2]
[350585172,1737976238584,-356.746726,0.00016712,2]
[350585174,1737976238593,-171.012366,0.00016712,2]
[350585176,1737976238602,-171.012366,0.00016712,2]
[350585178,1737976238612,-171.012366,0.00016712,2]
[350585180,1737976238621,-171.012366,0.00016712,2]
[350585182,1737976238630,-500.0,0.00016712,2]
[350585184,1737976238639,-151.0,0.00016712,2]
[350585185,1737976238648,-151.0,0.00016712,2]
[350585187,1737976238657,-151.0,0.00016712,2]
[350585189,1737976238666,-151.0,0.00016712,2]
[350585191,1737976238676,-545.55,0.00016712,2]
[350585193,1737976238685,-500.0,0.00016712,2]
[350585195,1737976238694,-500.0,0.00016712,2]
[350585197,1737976238704,-500.0,0.00016712,2]
[350585199,1737976238713,-500.0,0.00016712,2]
[350585201,1737976238724,-500.0,0.00016712,2]
[350585203,1737976238735,-151.0,0.00016712,2]
[350585205,1737976238744,-151.0,0.00016712,2]
[350585207,1737976238754,-500.0,0.00016712,2]
[350585210,1737976238764,-500.0,0.00016712,2]
[350585211,1737976238773,-500.0,0.00016712,2]
[350585212,1737976238782,-500.0,0.00016712,2]
[350585213,1737976238792,-468.665611,0.00016712,2]
[350585214,1737976238801,-468.665611,0.00016712,2]
[350585215,1737976238811,-468.665611,0.00016712,2]
[350585216,1737976238820,-468.665611,0.00016712,2]
[350585217,1737976238830,-151.0,0.00016712,2]
[350585220,1737976238839,-151.0,0.00016712,2]
[350585222,1737976238849,-500.0,0.00016712,2]
[350585224,1737976238858,-938.82,0.00016712,2]
[350585226,1737976238868,-500.0,0.00016712,2]
[350585227,1737976238878,-2936.62,0.00016712,2]
[350585229,1737976238888,-500.0,0.00016712,2]
[350585231,1737976238897,-1902.89,0.00016712,2]
[350585233,1737976238907,-500.0,0.00016712,2]
[350585235,1737976238916,-500.0,0.00016712,2]
[350585237,1737976238926,-500.0,0.00016712,2]
[350585239,1737976238935,-580.68,0.00016712,2]
[350585241,1737976238944,-1101.83,0.00016712,2]
[350585243,1737976238953,-859.34,0.00016712,2]
[350585245,1737976238962,-3065.26,0.00016712,2]
[350585247,1737976238973,-2815.36,0.00016712,2]
[350585249,1737976238983,-695.08,0.00016712,2]
[350585251,1737976238993,-500.0,0.00016712,2]
[350585253,1737976239002,-500.0,0.00016712,2]
[350585255,1737976239012,-500.0,0.00016712,2]
[350585257,1737976239021,-1318.94,0.00016712,2]
[350585259,1737976239030,-8022.93,0.00016712,2]
[350585261,1737976239040,-500.0,0.00016712,2]
[350585263,1737976239049,-1021.74,0.00016712,2]
[350585265,1737976239059,-554.15,0.00016712,2]
[350585267,1737976239068,-721.82,0.00016712,2]
[350585269,1737976239077,-500.0,0.00016712,2]
[350585271,1737976239087,-776.85,0.00016712,2]
[350585273,1737976239096,-500.0,0.00016712,2]
[350585275,1737976239106,-1240.34,0.00016712,2]
[350585277,1737976239116,-500.0,0.00016712,2]
[350585279,1737976239125,-500.0,0.00016712,2]
[350585281,1737976239134,-2087.29,0.00016712,2]
[350585283,1737976239143,-500.0,0.00016712,2]
[350585285,1737976239152,-500.0,0.00016712,2]
[350585287,1737976239162,-500.0,0.00016712,2]
[350585289,1737976239174,-352.36740554,0.00016848,2]
[350585302,1737976239286,-151.0,0.00016849,2]
[350585304,1737976239296,-500.0,0.00016849,2]
[350585306,1737976239305,-181.263469,0.00016849,2]
[350585308,1737976239314,-181.263469,0.00016849,2]
[350585310,1737976239323,-289.279959,0.00016849,2]
[350585312,1737976239332,-289.279959,0.00016849,2]
[350585314,1737976239341,-289.279959,0.00016849,2]
[350585316,1737976239350,-289.279959,0.00016849,2]
[350585318,1737976239359,-177.998522,0.00016849,2]
[350585320,1737976239369,-177.998522,0.00016849,2]
[350585322,1737976239378,-151.0,0.00016849,2]
[350585324,1737976239387,-151.0,0.00016849,2]
[350585326,1737976239396,-356.746726,0.00016849,2]
[350585328,1737976239406,-356.746726,0.00016849,2]
[350585330,1737976239415,-177.998522,0.00016849,2]
[350585332,1737976239424,-177.998522,0.00016849,2]
[350585334,1737976239433,-356.746726,0.00016849,2]
[350585336,1737976239442,-356.746726,0.00016849,2]
[350585338,1737976239452,-171.012366,0.00016849,2]
[350585340,1737976239462,-171.012366,0.00016849,2]
[350585342,1737976239472,-171.012366,0.00016849,2]
[350585344,1737976239481,-171.012366,0.00016849,2]
[350585346,1737976239491,-500.0,0.00016849,2]
[350585348,1737976239500,-154.28808875,0.00016849,2]
[350585350,1737976239509,-500.0,0.00016849,2]
[350585352,1737976239519,-191.630796,0.00016849,2]
[350585354,1737976239528,-151.0,0.00016849,2]
[350585356,1737976239537,-151.0,0.00016849,2]
[350585358,1737976239547,-500.0,0.00016849,2]
[350585360,1737976239555,-500.0,0.00016849,2]
[350585362,1737976239565,-500.0,0.00016849,2]
[350585364,1737976239574,-500.0,0.00016849,2]
[350585366,1737976239583,-500.0,0.00016849,2]
[350585368,1737976239592,-151.0,0.00016849,2]
[350585370,1737976239601,-151.0,0.00016849,2]
[350585372,1737976239610,-500.0,0.00016849,2]
[350585374,1737976239620,-640.914807,0.00016849,2]
[350585376,1737976239629,-500.0,0.00016849,2]
[350585378,1737976239639,-500.0,0.00016849,2]
[350585380,1737976239648,-468.665611,0.00016849,2]
[350585382,1737976239657,-468.665611,0.00016849,2]
[350585384,1737976239666,-468.665611,0.00016849,2]
[350585386,1737976239675,-468.665611,0.00016849,2]
[350585388,1737976239684,-151.0,0.00016849,2]
[350585390,1737976239693,-151.0,0.00016849,2]
[350585392,1737976239703,-500.0,0.00016849,2]
[350585394,1737976239711,-938.82,0.00016849,2]
[350585396,1737976239723,-500.0,0.00016849,2]
[350585398,1737976239732,-2936.62,0.00016849,2]
[350585400,1737976239742,-500.0,0.00016849,2]
[350585402,1737976239751,-1902.89,0.00016849,2]
[350585404,1737976239761,-500.0,0.00016849,2]
[350585406,1737976239770,-500.0,0.00016849,2]
[350585408,1737976239779,-150.02,0.00016849,2]
[350585410,1737976239788,-500.0,0.00016849,2]
[350585412,1737976239796,-150.02,0.00016849,2]
[350585414,1737976239806,-150.02,0.00016849,2]
[350585416,1737976239815,-500.0,0.00016849,2]
[350585418,1737976239823,-1101.83,0.00016849,2]
[350585420,1737976239833,-859.34,0.00016849,2]
[350585422,1737976239842,-3065.26,0.00016849,2]
[350585424,1737976239851,-2815.36,0.00016849,2]
[350585426,1737976239861,-695.08,0.00016849,2]
[350585428,1737976239870,-217.9307803,0.00016849,2]
[350585430,1737976239879,-500.0,0.00016849,2]
[350585432,1737976239889,-500.0,0.00016849,2]
[350585434,1737976239899,-1318.94,0.00016849,2]
[350585436,1737976239909,-8022.93,0.00016849,2]
[350585438,1737976239917,-500.0,0.00016849,2]
[350585440,1737976239926,-1021.74,0.00016849,2]
[350585442,1737976239936,-721.82,0.00016849,2]
[350585444,1737976239945,-500.0,0.00016849,2]
[350585446,1737976239954,-776.85,0.00016849,2]
[350585448,1737976239963,-500.0,0.00016849,2]
[350585450,1737976239974,-1240.34,0.00016849,2]
[350585452,1737976239984,-500.0,0.00016849,2]
[350585454,1737976239993,-500.0,0.00016849,2]
[350585456,1737976240002,-2087.29,0.00016849,2]
[350585458,1737976240011,-500.0,0.00016849,2]
[350585460,1737976240021,-150.02,0.00016849,2]
[350585461,1737976240030,-500.0,0.00016849,2]
[350585463,1737976240040,-500.0,0.00016849,2]
[350585465,1737976240049,-1500.0,0.00016876,2]
[350585467,1737976240058,-181.263469,0.00016886,2]
[350585469,1737976240067,-289.279959,0.00016886,2]
[350585471,1737976240077,-289.279959,0.00016886,2]
[350585473,1737976240086,-177.998522,0.00016886,2]
[350585475,1737976240096,-151.0,0.00016886,2]
[350585477,1737976240106,-356.746726,0.00016886,2]
[350585479,1737976240115,-177.998522,0.00016886,2]
[350585482,1737976240125,-356.746726,0.00016886,2]
[350585484,1737976240134,-171.012366,0.00016886,2]
[350585486,1737976240144,-171.012366,0.00016886,2]
[350585488,1737976240154,-151.0,0.00016886,2]
[350585490,1737976240163,-151.0,0.00016886,2]
[350585492,1737976240176,-1462.01977286,0.00016886,2]
[350585493,1737976240187,-500.0,0.00016986,2]
[350585495,1737976240196,-181.263469,0.00016986,2]
[350585498,1737976240206,-289.279959,0.00016986,2]
[350585500,1737976240218,-289.279959,0.00016986,2]
[350585503,1737976240231,-177.998522,0.00016986,2]
[350585504,1737976240241,-164.829972,0.00016986,2]
[350585507,1737976240258,-356.746726,0.00016986,2]
[350585509,1737976240268,-177.998522,0.00016986,2]
[350585511,1737976240277,-356.746726,0.00016986,2]
[350585514,1737976240287,-171.012366,0.00016986,2]
[350585517,1737976240297,-171.012366,0.00016986,2]
[350585520,1737976240307,-500.0,0.00016986,2]
[350585522,1737976240316,-151.0,0.00016986,2]
[350585525,1737976240326,-514.42,0.00016986,2]
[350585528,1737976240335,-500.0,0.00016986,2]
[350585531,1737976240345,-500.0,0.00016986,2]
[350585533,1737976240354,-407.93400514,0.00016986,2]
[350585535,1737976240364,-510.27,0.00016986,2]
[350585537,1737976240374,-151.0,0.00016986,2]
[350585539,1737976240383,-500.0,0.00016986,2]
[350585541,1737976240393,-500.0,0.00016986,2]
[350585543,1737976240402,-500.0,0.00016986,2]
[350585545,1737976240411,-468.665611,0.00016986,2]
[350585547,1737976240420,-468.665611,0.00016986,2]
[350585549,1737976240429,-468.665611,0.00016986,2]
[350585551,1737976240439,-468.665611,0.00016986,2]
[350585553,1737976240449,-151.0,0.00016986,2]
[350585555,1737976240459,-151.0,0.00016986,2]
[350585557,1737976240468,-500.0,0.00016986,2]
[350585559,1737976240480,-938.82,0.00016986,2]
[350585561,1737976240490,-500.0,0.00016986,2]
[350585563,1737976240499,-2936.62,0.00016986,2]
[350585565,1737976240508,-500.0,0.00016986,2]
[350585567,1737976240518,-1902.89,0.00016986,2]
[350585569,1737976240528,-630.97,0.00016986,2]
[350585571,1737976240537,-500.0,0.00016986,2]
[350585573,1737976240546,-500.0,0.00016986,2]
[350585575,1737976240555,-1101.83,0.00016986,2]
[350585577,1737976240565,-859.34,0.00016986,2]
[350585579,1737976240574,-3065.26,0.00016986,2]
[350585581,1737976240584,-2815.36,0.00016986,2]
[350585583,1737976240594,-695.08,0.00016986,2]
[350585585,1737976240603,-500.0,0.00016986,2]
[350585587,1737976240612,-500.0,0.00016986,2]
[350585589,1737976240622,-1318.94,0.00016986,2]
[350585591,1737976240632,-8022.93,0.00016986,2]
[350585593,1737976240641,-500.0,0.00016986,2]
[350585595,1737976240651,-1021.74,0.00016986,2]
[350585597,1737976240660,-721.82,0.00016986,2]
[350585599,1737976240669,-500.0,0.00016986,2]
[350585601,1737976240679,-776.85,0.00016986,2]
[350585603,1737976240688,-500.0,0.00016986,2]
[350585605,1737976240698,-1240.34,0.00016986,2]
[350585607,1737976240707,-500.0,0.00016986,2]
[350585609,1737976240716,-500.0,0.00016986,2]
[350585611,1737976240729,-2087.29,0.00016986,2]
[350585613,1737976240740,-500.0,0.00016986,2]
[350585615,1737976240750,-500.0,0.00016986,2]
[350585617,1737976240761,-468.665611,0.00017023,2]
[350585619,1737976240770,-468.665611,0.00017023,2]
[350585621,1737976240780,-151.0,0.00017023,2]
[350585623,1737976240790,-37022.17207585,0.00017023,2]
[350585625,1737976240801,-500.0,0.00017123,2]
[350585627,1737976240810,-150.02,0.00017123,2]